Workbook

Sheet Main Worksheet
D1: Profit & Tax Projection - Sole Traders, Partnerships & Trusts | M1: Client Name | T1: HIDE
D2: =CONCATENATE("Year Ended ",TEXT(Year,"dd mmm yyy")) -> Year Ended 30 Jun 2018 | M2: Preparer Name
D6: PROJECTED PROFIT & TAXABLE INCOME | S6: Instructions | T6: Start of Year | W6: Rolling Forward
S7: When calculating net profit/(loss) for the period, either use the part-year profit shown in accounts prepared by your client and make the relevant adjustments OR use the part-year profit in accounts prepared by your practice. You can change or delete all existing descriptions as they are provided for quick data entry purposes only. Click on the sort icons to sort each list in alpabetical order. The descriptions shown in the "Adjustments" section are those that might typically be found in accounts prepared by your client. You can select one of three options for projecting profit for the remaining period. You can annualise the part year profit, enter details of projected income and expenses in the projection worksheet for transfer to the main sheet or simply enter totals for projected income and expenses in the main sheet. | T7: =EOMONTH(T9,-12)+1 -> 2017-07-01 | W7: Tax law changes | Z7: Done2018
D8: Net Profit/(Loss) | K8: Taxable Income | T8: End of Year | W8: Year Ended | Z8: 2018-06-30
T9: =Z8 -> 2018-06-30 | W9: Base rate entity turnover | Z9: $25m
D10: Period Commencing | E10: 2017-07-01 | K10: Projected Annual Profit/(Loss) Brought Forward | O10: =E44 -> 0 | T10: Days in Year | W10: Update tax rates below | Z10: Done2018
D11: Period Ending | E11: 2017-12-31 | T11: =T9-T7+1 -> 365
D12: Source of Profit Figure for the Period | E12: Select | K12: Add (if not included in accounts) | T12: Days to Project
D13: Business Entity Type | E13: Select | K13: Capital Gains | T13: =T9-E11+1 -> 182
K14: Closing Debtors (for accrual accounting taxpayers) | T14: Owners
D15: =IF(E12="Client","Net Profit/(Loss) Per Client Accounting System",IF(E12="Accountant","Net Profit/(Loss) Per Accountant","Net Profit/(Loss)")) -> Net Profit/(Loss) | K15: Closing Stock | T15: =IF(E13="Select","Owner(s)' or Beneficiaries' Names","") -> Owner(s)' or Beneficiaries' Names
K16: FBT Contribution | T16: =IF(E13="Sole Trader","Sole Trader's Name","") -> 
D17: Deduct/(Add) Income Adjustments | K17: Opening Creditors | T17: =IF(E13="Partnership","Partners' Names","") -> 
D18: GST Refunds | K18: Profit on Sale of Plant & Equipment | T18: =IF(E13="Family Trust","Beneficiaries' Names","") -> 
D19: Loans Received - Other | T19: =IF(E13="Unit Trust","Unitholders' Names","") -> 
D20: Loans Received - Owner(s)
D21: Tax Refund
D27: Total Income Adjustments | E27: =SUM(E17:E26) -> 0 | K27: Total Amounts Added to Taxable Income | O27: =SUM(O13:O26) -> 0
D28: Sub-Total | E28: =E15-E27 -> 0 | K28: Sub-Total | O28: =O10+O27 -> 0
D30: Add Back/(Deduct) Expense Adjustments | K30: Deduct (if not included in accounts)
D31: Assets Acquired | K31: Closing Creditors
D32: GST Payments | K32: Depreciation
D33: Hire Purchase Repayments | K33: Hire Purchase Charges
D34: Income Tax Payments | K34: Interest
D35: Loan Repayments | K35: Loss on Sale of Plant & Equipment
D36: Loans to Owner(s) | K36: Opening Debtors (for accrual accounting taxpayers)
D37: Private Expenses | K37: Opening Stock
K38: Tax Losses Deducted
D41: Total Expense Adjustments | E41: =SUM(E31:E40) -> 0 | T41: Projected
D42: Net Profit/(Loss) for the Period after Adjustments | E42: =E28+E41 -> 0 | T42: Profit
D43: Add Projected Profit/(Loss) for the Remaining Period | E43: =IF(T44=1,E48,IF(T44=2,E49,E53)) -> 0 | T43: Method
D44: Projected Annual Profit/(Loss) Carried Forward | E44: =E42+E43 -> 0 | K44: Total Amounts Deducted from Taxable Income | O44: =SUM(O31:O43) -> 0 | T44: 1
K45: Projected Taxable Income/(Loss) before Tax Planning | O45: =ROUNDDOWN(O28-O44,0) -> 0
D47: Method Used to Project Profit/(Loss) for the Remaining Period
D48: Annualise Part-Year Profit | E48: =E42/(E11-E10+1)*T13 -> 0
D49: Transfer from Worksheet | E49: ='Projection Worksheet'!D52 -> 0
D50: Summary as Shown Below
D51: Projected Income
D52: Less Projected Expenses
D53: Projected Profit | E53: =E51-E52 -> 0
T54: Taxpayer Types
T55: Resident
T56: Non-Resident
D57: ESTIMATE OF TAX PAYABLE BEFORE TAX PLANNING | T57: Minor
T58: Non-Res Minor | AD58: Add to Tax Payable
E59: Taxpayer | F59: Residents Situation | J59: Taxable | K59: Other | L59: Taxable | M59: Tax on | N59: Less | O59: Tax Payable | S59: Taxable Profit | T59: Company | Y59: Situation | AD59: Mcare Thres | AE59: Taxable Income Before Tax Planning | AI59: Taxable Income After Tax Planning
D60: =CONCATENATE(T15,T16,T17,T18,T19) -> Owner(s)' or Beneficiaries' Names | E60: Type | F60: F | G60: P | H60: S | I60: H | J60: Profit | K60: Income | L60: Income | M60: Taxable Inc | N60: Tax Credits | O60: (Refund) | S60: You can account for any part of the taxable profit which will have a zero tax rate in the hands of the owner(s) or beneficiaries by selecting "Non-Taxable" as the taxpayer type. | T60: Company SBE | Y60: Married | Z60: Pensioner | AA60: Mcare Surch | AB60: HELP | AE60: Mcare Levy | AF60: Mcare Surch | AG60: HELP | AH60: Total | AI60: Mcare Levy | AJ60: Mcare Surch | AK60: HELP | AL60: Total
L61: =J61+K61 -> 0 | M61: =IF(L61>0,IF(AND(E61="Resident",L61>ResidentTaxFree),VLOOKUP(L61,Residents,3,TRUE)+(L61-VLOOKUP(L61,Residents,1,TRUE))*(VLOOKUP(L61,Residents,4,TRUE)),0)-IF(AND(E61="Resident",L61>ResidentTaxFree,L61<LitoLow+1),LitoOffset,0)-IF(AND(E61="Resident",L61>ResidentTaxFree,L61>LitoLow,L61<LitoHigh),LitoOffset-((L61-LitoLow)*LitoPhaseOut),0)+IF(E61="Non-Resident",VLOOKUP(L61,NonResidents,3,TRUE)+(L61-VLOOKUP(L61,NonResidents,1,TRUE))*(VLOOKUP(L61,NonResidents,4,TRUE)),0)+IF(AND(E61="Minor",L61>MinorsTaxFree),(L61*$W$84)-IF(L61<LitoLow+1,LitoOffset,0)-IF(AND(L61>LitoLow,L61<LitoHigh),LitoOffset-((L61-LitoLow)*LitoPhaseOut),0),0)+IF(E61="Non-Res Minor",IF(L61<=$U$87,L61*$W$87,0)+IF(AND(L61>$U$87,L61<$T$89),$V$88+(L61-$T$88)*$W$88,0)+IF(L61>$U$88,L61*$W$89,0),0)+IF(E61="Company",L61*Companies,0)+IF(E61="Company SBE",L61*CompaniesSBE,0)+IF(E61="Resident",AH61,0),0) -> 0 | O61: =M61-N61 -> 0 | T61: Non-Taxable | Y61: FALSE | Z61: FALSE | AA61: FALSE | AB61: FALSE | AD61: =IF(AND(Y61=TRUE,Z61=TRUE),MedicareThreshPensionerFamily,0)+IF(AND(Y61=TRUE,Z61=FALSE),MedicareThresFamilies,0)+IF(AND(Y61=FALSE,Z61=TRUE),MedicareThreshPensionerSingle,0)+IF(AND(Y61=FALSE,Z61=FALSE),MedicareThreshSingle,0) -> 21655 | AE61: =IF(L61>AD61,L61*MedicareRate,0) -> 0 | AF61: =IF(AA61=TRUE,L61*MedicareSurchargeRate,0) -> 0 | AG61: =IF(AB61=TRUE,L61*VLOOKUP(L61,Help,4,TRUE),0) -> 0 | AH61: =SUM(AE61:AG61) -> 0 | AI61: =IF(L98>AD61,L98*MedicareRate,0) -> 0 | AJ61: =IF(AA61=TRUE,L98*MedicareSurchargeRate,0) -> 0 | AK61: =IF(AB61=TRUE,L98*VLOOKUP(L98,Help,4,TRUE),0) -> 0 | AL61: =SUM(AI61:AK61) -> 0
L62: 0 | M62: 0 | O62: =M62-N62 -> 0 | Y62: FALSE | Z62: FALSE | AA62: FALSE | AB62: FALSE | AD62: 21655 | AE62: 0 | AF62: 0 | AG62: 0 | AH62: 0 | AI62: 0 | AJ62: 0 | AK62: 0 | AL62: =SUM(AI62:AK62) -> 0
L63: 0 | M63: 0 | O63: 0 | T63: Tax Rates | Y63: FALSE | Z63: FALSE | AA63: FALSE | AB63: FALSE | AD63: 21655 | AE63: 0 | AF63: 0 | AG63: 0 | AH63: 0 | AI63: 0 | AJ63: 0 | AK63: 0 | AL63: 0
L64: 0 | M64: 0 | O64: 0 | T64: Residents 2018 | Y64: FALSE | Z64: FALSE | AA64: FALSE | AB64: FALSE | AD64: 21655 | AE64: 0 | AF64: 0 | AG64: 0 | AH64: 0 | AI64: 0 | AJ64: 0 | AK64: 0 | AL64: 0
L65: 0 | M65: 0 | O65: 0 | T65: 0 | U65: 18200 | V65: 0 | W65: 0
L66: 0 | M66: 0 | O66: 0 | T66: =U65+1 -> 18201 | U66: 37000 | V66: 0 | W66: 0.19 | Y66: FALSE | Z66: FALSE | AA66: FALSE | AB66: FALSE | AD66: 21655 | AE66: 0 | AF66: 0 | AG66: 0 | AH66: 0 | AI66: 0 | AJ66: 0 | AK66: 0 | AL66: 0
L67: 0 | M67: 0 | O67: 0 | T67: =U66+1 -> 37001 | U67: 87000 | V67: 3572 | W67: 0.325 | Y67: FALSE | Z67: FALSE | AA67: FALSE | AB67: FALSE | AD67: 21655 | AE67: 0 | AF67: 0 | AG67: 0 | AH67: 0 | AI67: 0 | AJ67: 0 | AK67: 0 | AL67: 0
L68: 0 | M68: 0 | O68: 0 | T68: =U67+1 -> 87001 | U68: 180000 | V68: 19822 | W68: 0.37 | Y68: FALSE | Z68: FALSE | AA68: FALSE | AB68: FALSE | AD68: 21655 | AE68: 0 | AF68: 0 | AG68: 0 | AH68: 0 | AI68: 0 | AJ68: 0 | AK68: 0 | AL68: =SUM(AI68:AK68) -> 0
I69: Taxable Profit Allocated | J69: =ROUNDDOWN(SUM(J61:J68),0) -> 0 | N69: Total Tax Payable Before Tax Planning | O69: =SUM(O61:O68) -> 0 | T69: =U68+1 -> 180001 | V69: 54232 | W69: 0.45
I70: =IF(J70<>0,"Unallocated Taxable Profit","") ->  | J70: =O45-J69 -> 0 | T70: Low Income Tax Offset (residents only) for 2018
D71: =D108 -> NOTE: Personal income tax calculations include the standard tax-free threshold with allowance for the low income, but no other, tax offset. Tax also includes Medicare levy and surcharge where applicable, the latter using the tier 3 rate of the levy, and without increased thresholds for children where applicable. Repayments on any HELP/TSL debt where applicable uses taxable income and not Repayment Income. Medicare levy is calculated at the full rate for singles, families or pensioners as applicable from the lower threshold (i.e. no shade-in calculations are made). | T71: Offset Amount | W71: 445
T72: Tax free with LITO | W72: =U65+(LitoOffset/W66) -> 20542.10526
D73: TAX PLANNING MEASURES | T73: Full Offset | W73: 37000
T74: No Offset | W74: 66667
D75: Projected Taxable Income/Net Income/(Loss) Before Tax Planning | J75: =O45 -> 0 | T75: Phase-out Rate | W75: 0.015
T76: Non-Residents 2018
D77: Description of Tax Planning Measure | K77: Comments | T77: 0 | U77: 87000 | V77: 0 | W77: 0.325
S78: Tax Planning | T78: =U77+1 -> 87001 | U78: 180000 | V78: 28275 | W78: 0.37
S79: Use this section to show alternatives to paying personal tax this year on the above projected profit. Any tax saved or deferred will be calculated below. Additional deductible superannuation contributions should be shown in the section below. | T79: =U78+1 -> 180001 | V79: 62685 | W79: 0.45
T81: Resident Minors - assumed 2018 rates based on 2017
T82: 0 | U82: 416 | V82: 0 | W82: 0
T83: =U82+1 -> 417 | U83: 1307 | V83: 0 | W83: 0.68
T84: =U83+1 -> 1308 | V84: 0 | W84: 0.45
U85: Tax free with LITO | V85: 416
T86: Non-Resident Minors - assumed 2018 rates based on 2017
T87: 0 | U87: 416 | V87: 0 | W87: 0.345
T88: =U87+1 -> 417 | U88: 663 | V88: =U87*W87 -> 143.52 | W88: 0.68
D89: Total Deduction for Tax Planning Measures | J89: =SUM(J78:J88) -> 0 | T89: =U88+1 -> 664 | V89: 0 | W89: 0.45
D90: Projected Taxable Income/Net Income/(Loss) After Tax Planning | J90: =ROUNDDOWN(J75-J89,0) -> 0 | T90: Companies 2018
T91: Standard (full) rate | W91: 0.3
T92: Base rate entity | W92: 0.275
D93: ESTIMATE OF TAX PAYABLE AFTER TAX PLANNING | T93: Superannuation Funds 2018
T94: Flat rate for all superannuation funds | W94: 0.15
E95: Taxpayer | F95: Residents Situation | J95: Taxable | K95: Other | L95: Taxable | M95: Tax on | N95: Less | O95: Tax Payable | T95: Medicare 2018 (from PAYG withholding schedule)
D96: =D60 -> Owner(s)' or Beneficiaries' Names | E96: Type | F96: F | G96: P | H96: S | I96: H | J96: Profit | K96: Income | L96: Income | M96: Taxable Inc | N96: Tax Credits | O96: (Refund) | T96: Levy rate | W96: 0.02
D97: Additional Deductible Superannuation Contributions | L97: =J97 -> 0 | M97: =L97*0.15 -> 0 | O97: =M97 -> 0 | S97: Taxable Profit | T97: Threshold - single | W97: 21655
D98: =D61 -> 0 | E98: 0 | F98: =IF(AND(Y61=TRUE,$E98="Resident"),"Y","") ->  | G98: =IF(AND(Z61=TRUE,$E98="Resident"),"Y","") ->  | H98: =IF(AND(AA61=TRUE,$E98="Resident"),"Y","") ->  | I98: =IF(AND(AB61=TRUE,$E98="Resident"),"Y","") ->  | J98: =J61 -> 0 | K98: =K61 -> 0 | L98: =J98+K98 -> 0 | M98: =IF(L98>0,IF(AND(E98="Resident",L98>ResidentTaxFree),VLOOKUP(L98,Residents,3,TRUE)+(L98-VLOOKUP(L98,Residents,1,TRUE))*(VLOOKUP(L98,Residents,4,TRUE)),0)-IF(AND(E98="Resident",L98>ResidentTaxFree,L98<LitoLow+1),LitoOffset,0)-IF(AND(E98="Resident",L98>ResidentTaxFree,L98>LitoLow,L98<LitoHigh),LitoOffset-((L98-LitoLow)*LitoPhaseOut),0)+IF(E98="Non-Resident",VLOOKUP(L98,NonResidents,3,TRUE)+(L98-VLOOKUP(L98,NonResidents,1,TRUE))*(VLOOKUP(L98,NonResidents,4,TRUE)),0)+IF(AND(E98="Minor",L98>MinorsTaxFree),(L98*$W$84)-IF(L98<LitoLow+1,LitoOffset,0)-IF(AND(L98>LitoLow,L98<LitoHigh),LitoOffset-((L98-LitoLow)*LitoPhaseOut),0),0)+IF(E98="Non-Res Minor",IF(L98<=$U$87,L98*$W$87,0)+IF(AND(L98>$U$87,L98<$T$89),$V$88+(L98-$T$88)*$W$88,0)+IF(L98>$U$88,L98*$W$89,0),0)+IF(E98="Company",L98*Companies,0)+IF(E98="Company SBE",L98*CompaniesSBE,0)+IF(E98="Resident",AL61,0),0) -> 0 | N98: =N61 -> 0 | O98: =M98-N98 -> 0 | S98: Show amounts of taxable profit after tax planning to be allocated to the owner(s) or beneficiaries. Amounts allocated before tax planning have been automatically transferred to these fields but need to be changed to ensure that the total taxable profit allocated agrees with the projected profit after tax planning. | T98: Threshold - families | W98: 36541
D99: 0 | E99: 0 | F99: =IF(AND(Y62=TRUE,$E99="Resident"),"Y","") ->  | G99: =IF(AND(Z62=TRUE,$E99="Resident"),"Y","") ->  | H99: =IF(AND(AA62=TRUE,$E99="Resident"),"Y","") ->  | I99: =IF(AND(AB62=TRUE,$E99="Resident"),"Y","") ->  | J99: =J62 -> 0 | K99: 0 | L99: =J99+K99 -> 0 | M99: 0 | N99: =N62 -> 0 | O99: =M99-N99 -> 0 | T99: Threshold - single pensioner | W99: 34244
D100: 0 | E100: 0 | J100: 0 | K100: 0 | L100: 0 | M100: 0 | N100: 0 | O100: 0 | T100: Threshold - family pensioner | W100: 47670
D101: 0 | E101: 0 | J101: 0 | K101: 0 | L101: 0 | M101: 0 | N101: 0 | O101: 0 | T101: Medicare Surcharge 2018
D102: 0 | E102: 0 | J102: 0 | K102: 0 | L102: 0 | M102: 0 | N102: 0 | O102: 0 | T102: Surcharge rate using Tier 3 | W102: 0.015
D103: 0 | E103: 0 | J103: 0 | K103: 0 | L103: 0 | M103: 0 | N103: 0 | O103: 0 | T103: HELP & TLS Repayments 2018
D104: 0 | E104: 0 | J104: 0 | K104: 0 | L104: 0 | M104: 0 | N104: 0 | O104: 0 | T104: 0 | U104: 55873 | W104: 0
D105: 0 | E105: 0 | J105: 0 | K105: 0 | L105: 0 | M105: 0 | N105: 0 | O105: 0 | T105: =U104+1 -> 55874 | U105: 62238 | W105: 0.04
I106: Taxable Profit Allocated | J106: =ROUNDDOWN(SUM(J97:J105),0) -> 0 | N106: Total Tax Payable After Tax Planning | O106: =SUM(O97:O105) -> 0 | T106: =U105+1 -> 62239 | U106: 68602 | W106: 0.045
I107: =IF(J107<>0,"Unallocated Taxable Profit","") ->  | J107: =J90-J106 -> 0 | N107: Tax Saved or Deferred by Tax Planning | O107: =O69-O106 -> 0 | T107: 68603 | U107: 72207 | W107: 0.05
D108: NOTE: Personal income tax calculations include the standard tax-free threshold with allowance for the low income, but no other, tax offset. Tax also includes Medicare levy and surcharge where applicable, the latter using the tier 3 rate of the levy, and without increased thresholds for children where applicable. Repayments on any HELP/TSL debt where applicable uses taxable income and not Repayment Income. Medicare levy is calculated at the full rate for singles, families or pensioners as applicable from the lower threshold (i.e. no shade-in calculations are made). | T108: 72208 | U108: 77618 | W108: 0.055
T109: 77619 | U109: 84062 | W109: 0.06
T110: 84063 | U110: 88486 | W110: 0.065
T111: 88487 | U111: 97377 | W111: 0.07
T112: 97378 | U112: 103765 | W112: 0.075
T113: 103766 | U113: 10000000 | W113: 0.08
T114: =U113+1 -> 10000001 | U114: 20000000

Sheet Projection Worksheet
C2: =CONCATENATE("Income & Expense Projections ","for ",'Main Worksheet'!M1) -> Income & Expense Projections for Client Name
C3: =CONCATENATE("For the Period from ",TEXT('Main Worksheet'!E10, "dd mmm yyyy")," to ",TEXT('Main Worksheet'!E11, "dd mmm yyyy")) -> For the Period from 01 Jul 2017 to 31 Dec 2017
G5: Instructions
C6: Income | G6: You can change or delete all existing descriptions as they are provided for quick data entry purposes only. The sort icons will sort each list in alphabetical order.
C7: Contracting
C8: Professional Fees
C9: Sales
C13: Total Income | D13: =SUBTOTAL(109,Income[Column1]) -> 0
C18: Less Expenses
C19: Accounting
C20: Advertising
C21: Bank Charges
C22: Computer Software & Supplies
C23: Donations
C24: Electricity & Gas
C25: Freight & Cartage
C26: Hire of Plant & Equipment
C27: Insurance
C28: Interest
C29: Lease Payments
C30: Materials & Supplies
C31: Motor Vehicle Expenses
C32: Postage
C33: Printing & Stationery
C34: Purchases
C35: Rates & Land Taxes
C36: Rent
C37: Repairs & Maintenance
C38: Salaries & Wages
C39: Subcontractors
C40: Subscriptions
C41: Sundries
C42: Superannuation
C43: Telephone
C47: Total Expenses | D47: =SUBTOTAL(109,Expenses[Column1]) -> 0
C52: Profit/(Loss) for the Period from 01 Jan 2018 to 30 Jun 2018 | D52: =Income[[#Totals],[Column1]]-Expenses[[#Totals],[Column1]] -> 0
